fUSD/lending_fUSD_20240222
["ID","MTS","AMOUNT","RATE_DAILY","PERIOD"]
[314853684,1708594253804,-944.58,0.00035616,2]
[314853685,1708594253814,-2038.48,0.00035616,2]
[314853686,1708594253824,-1080.17,0.00035616,2]
[314853687,1708594253833,-876.31,0.00035616,2]
[314853688,1708594253843,-658.83,0.00035616,2]
[314853689,1708594253852,-500.0,0.00035616,2]
[314853690,1708594253861,-1196.14,0.00035616,2]
[314853691,1708594253871,-500.0,0.00035616,2]
[314853692,1708594253880,-500.0,0.00035616,2]
[314853693,1708594253889,-500.0,0.00035616,2]
[314853694,1708594253899,-934.53,0.00035616,2]
[314853695,1708594253908,-500.0,0.00035616,2]
[314853696,1708594253918,-2889.52,0.00035616,2]
[314853697,1708594253927,-2876.73,0.00035616,2]
[314853698,1708594253936,-500.0,0.00035616,2]
[314853699,1708594253945,-555.01,0.00035616,2]
[314853700,1708594253954,-432.96733775,0.00035616,2]
[314853701,1708594253964,-500.0,0.00035616,2]
[314853702,1708594253973,-170.07872271,0.00035616,2]
[314853703,1708594253982,-500.0,0.00035616,2]
[314853704,1708594253992,-1234.9,0.00035616,2]
[314853705,1708594254001,-500.0,0.00035616,2]
[314853706,1708594254010,-500.0,0.00035616,2]
[314853707,1708594254020,-2964.5,0.00035616,2]
[314853708,1708594254030,-500.0,0.00035616,2]
[314853709,1708594254040,-500.0,0.00035616,2]
[314853710,1708594254050,-500.0,0.00035616,2]
[314853711,1708594254060,-500.0,0.00035616,2]
[314853712,1708594254069,-2089.95,0.00035616,2]
[314853713,1708594254080,-500.0,0.00035616,2]
[314853714,1708594254089,-733.05,0.00035616,2]
[314853715,1708594254100,-547.22,0.00035616,2]
[314853716,1708594254109,-501.85,0.00035616,2]
[314853717,1708594254119,-583.47,0.00035616,2]
[314853718,1708594254128,-500.0,0.00035616,2]
[314853719,1708594254138,-1177.7,0.00035616,2]
[314853720,1708594254147,-500.0,0.00035616,2]
[314853721,1708594254156,-500.0,0.00035616,2]
[314853722,1708594254166,-2766.12,0.00035616,2]
[314853723,1708594254176,-500.0,0.00035616,2]
[314853724,1708594254185,-500.0,0.00035616,2]
[314853725,1708594254194,-500.0,0.00035616,2]
[314853726,1708594254204,-646.3,0.00035616,2]
[314853728,1708594254214,-500.0,0.00035616,2]
[314853729,1708594254224,-617.68,0.00035616,2]
[314853730,1708594254233,-500.0,0.00035616,2]
[314853731,1708594254242,-2719.72,0.00035616,2]
[314853732,1708594254251,-1287.26,0.00035616,2]
[314853733,1708594254261,-1027.32,0.00035616,2]
[314853734,1708594254271,-2825.95,0.00035616,2]
[314853735,1708594254281,-500.0,0.00035616,2]
[314853736,1708594254291,-500.0,0.00035616,2]
[314853737,1708594254300,-1514.5,0.00035616,2]
[314853738,1708594254310,-4394.63,0.00035616,2]
[314853739,1708594254319,-500.0,0.00035616,2]
[314853740,1708594254328,-500.0,0.00035616,2]
[314853741,1708594254338,-500.0,0.00035616,2]
[314853742,1708594254348,-500.0,0.00035616,2]
[314853743,1708594254357,-4178.92,0.00035616,2]
[314853744,1708594254367,-1938.07,0.00035616,2]
[314853745,1708594254376,-500.0,0.00035616,2]
[314853746,1708594254386,-500.0,0.00035616,2]
[314853747,1708594254395,-543.34,0.00035616,2]
[314853748,1708594254405,-500.0,0.00035616,2]
[314853749,1708594254414,-14281.34,0.00035616,2]
[314853750,1708594254423,-500.0,0.00035616,2]
[314853751,1708594254432,-1022.11,0.00035616,2]
[314853752,1708594254441,-2145.11,0.00035616,2]
[314853753,1708594254452,-1707.21,0.00035616,2]
[314853754,1708594254463,-1877.79,0.00035616,2]
[314853755,1708594254829,-500.0,0.00035616,2]
[314853756,1708594254843,-584.83,0.00035616,2]
[314853757,1708594254853,-500.0,0.00035616,2]
[314853758,1708594254863,-22038.12,0.00035616,2]
[314853759,1708594254873,-586.31,0.00035616,2]
[314853760,1708594254883,-568.19,0.00035616,2]
[314853761,1708594254892,-15829.44,0.00035616,2]
[314853762,1708594254902,-843.33,0.00035616,2]
[314853763,1708594254911,-889.54,0.00035616,2]
[314853764,1708594254921,-527.44987899,0.00035616,2]
[314853765,1708594254931,-5647.07,0.00035616,2]
[314853766,1708594254940,-1891.99,0.00035616,2]
[314853767,1708594254950,-3479.89,0.00035616,2]
[314853768,1708594254961,-762.83,0.00035616,2]
[314853769,1708594254970,-500.0,0.00035616,2]
[314853770,1708594254980,-500.0,0.00035616,2]
[314853771,1708594254989,-500.0,0.00035616,2]
[314853772,1708594254999,-642.21,0.00035616,2]
[314853773,1708594255009,-500.0,0.00035616,2]
[314853774,1708594255018,-500.0,0.00035616,2]
[314853775,1708594255028,-569.9,0.00035616,2]
[314853776,1708594255038,-1305.74,0.00035616,2]
[314853777,1708594255047,-500.0,0.00035616,2]
[314853778,1708594255057,-500.0,0.00035616,2]
[314853779,1708594255066,-500.0,0.00035616,2]
[314853780,1708594255076,-500.0,0.00035616,2]
[314853781,1708594255086,-1633.99,0.00035616,2]
[314853782,1708594255095,-564.02,0.00035616,2]
[314853783,1708594255105,-1609.81,0.00035616,2]
[314853784,1708594255114,-1509.08,0.00035616,2]
[314853785,1708594255124,-1718.41,0.00035616,2]
[314853786,1708594255134,-530.1,0.00035616,2]
[314853787,1708594255144,-517.88911927,0.00035616,2]
[314853788,1708594255154,-10493.72,0.00035616,2]
[314853789,1708594255169,-500.0,0.00035616,2]
[314853790,1708594255180,-552.77,0.00035616,2]
[314853791,1708594255190,-989.05,0.00035616,2]
[314853792,1708594255200,-4689.25,0.00035616,2]
[314853793,1708594255210,-885.26,0.00035616,2]
[314853794,1708594255220,-3092.01,0.00035616,2]
[314853795,1708594255230,-828.33,0.00035616,2]
[314853796,1708594255240,-958.38,0.00035616,2]
[314853797,1708594255250,-500.0,0.00035616,2]
[314853798,1708594255260,-518.54,0.00035616,2]
[314853799,1708594255270,-1375.88,0.00035616,2]
[314853800,1708594255281,-500.0,0.00035616,2]
[314853801,1708594255291,-764.26,0.00035616,2]
[314853802,1708594255301,-935.03,0.00035616,2]
[314853803,1708594255311,-2113.11,0.00035616,2]
[314853804,1708594255320,-516.5684952,0.00035616,2]
[314853805,1708594255330,-9564.67,0.00035616,2]
[314853806,1708594255341,-1022.4,0.00035616,2]
[314853807,1708594255350,-820.71,0.00035616,2]
[314853808,1708594255361,-905.99,0.00035616,2]
[314853809,1708594255370,-500.0,0.00035616,2]
[314853810,1708594255380,-3238.23,0.00035616,2]
[314853811,1708594255390,-13141.04,0.00035616,2]
[314853812,1708594255400,-1334.09,0.00035616,2]
[314853813,1708594255409,-500.0,0.00035616,2]
[314853814,1708594255419,-1048.24,0.00035616,2]
[314853815,1708594255430,-500.0,0.00035616,2]
[314853816,1708594255440,-503.55208063,0.00035616,2]
[314853817,1708594255450,-1701.02,0.00035616,2]
[314853818,1708594255460,-500.0,0.00035616,2]
[314853819,1708594255473,-1521.95,0.00035616,2]
[314853820,1708594255482,-3287.48,0.00035616,2]
[314853821,1708594255492,-784.75,0.00035616,2]
[314853822,1708594255502,-500.0,0.00035616,2]
[314853823,1708594255513,-500.0,0.00035616,2]
[314853824,1708594255523,-500.0,0.00035616,2]
[314853825,1708594255533,-500.0,0.00035616,2]
[314853826,1708594255543,-500.0,0.00035616,2]
[314853827,1708594255553,-2885.07,0.00035616,2]
[314853828,1708594255562,-500.0,0.00035616,2]
[314853829,1708594255572,-2089.97,0.00035616,2]
[314853830,1708594255581,-500.0,0.00035616,2]
[314853831,1708594255591,-7173.82,0.00035616,2]
[314853832,1708594255605,-980.06,0.00035616,2]
[314853833,1708594255616,-1187.59,0.00035616,2]
[314853834,1708594255626,-500.0,0.00035616,2]
[314853835,1708594255636,-1009.89,0.00035616,2]
[314853836,1708594255645,-500.0,0.00035616,2]
[314853837,1708594255655,-920.66,0.00035616,2]
[314853838,1708594255665,-500.0,0.00035616,2]
[314853839,1708594255676,-692.41,0.00035616,2]
[314853840,1708594255686,-500.0,0.00035616,2]
[314853841,1708594255697,-500.0,0.00035616,2]
[314853842,1708594255706,-1534.22,0.00035616,2]
[314853843,1708594255716,-500.0,0.00035616,2]
[314853844,1708594255726,-500.0,0.00035616,2]
[314853845,1708594255737,-1443.9,0.00035616,2]
[314853846,1708594255749,-500.0,0.00035616,2]
[314853847,1708594255759,-500.0,0.00035616,2]
[314853848,1708594255769,-2710.77,0.00035616,2]
[314853849,1708594255779,-1184.78,0.00035616,2]
[314853850,1708594255790,-2295.41,0.00035616,2]
[314853851,1708594255799,-924.59,0.00035616,2]
[314853852,1708594255810,-1675.39,0.00035616,2]
[314853853,1708594255820,-500.0,0.00035616,2]
[314853854,1708594255830,-615.42,0.00035616,2]
[314853855,1708594255840,-500.0,0.00035616,2]
[314853856,1708594255849,-432.83983988,0.00035616,2]
[314853857,1708594255859,-1951.42,0.00035616,2]
[314853858,1708594255869,-1638.77,0.00035616,2]
[314853859,1708594255878,-9339.53,0.00035616,2]
[314853860,1708594255888,-4874.37,0.00035616,2]
[314853861,1708594255899,-809.3,0.00035616,2]
[314853862,1708594255909,-517.5259235,0.00035616,2]
[314853863,1708594255918,-1057.9,0.00035616,2]
[314853864,1708594255928,-1005.03,0.00035616,2]
[314853865,1708594255937,-500.0,0.00035616,2]
[314853866,1708594255947,-8905.81,0.00035616,2]
[314853867,1708594255956,-512.70683269,0.00035616,2]
[314853868,1708594255966,-1619.47,0.00035616,2]
[314853869,1708594255976,-759.5,0.00035616,2]
[314853870,1708594255985,-500.0,0.00035616,2]
[314853871,1708594255995,-500.0,0.00035616,2]
[314853872,1708594256005,-500.0,0.00035616,2]
[314853873,1708594256014,-1655.4,0.00035616,2]
[314853874,1708594256029,-500.0,0.00035616,2]
[314853875,1708594256039,-1000.0,0.00035616,7]
[314853876,1708594256049,-1198.68,0.00035616,2]
[314853877,1708594256059,-529.62,0.00035616,2]
[314853878,1708594256069,-500.0,0.00035616,2]
[314853879,1708594256079,-500.0,0.00035616,2]
[314853880,1708594256089,-5145.33811541,0.00035616,2]
[314853881,1708594256828,-15406.69188459,0.00035616,2]
[314853882,1708594256838,-500.0,0.00035616,2]
[314853883,1708594256848,-500.0,0.00035616,2]
[314853884,1708594256857,-500.0,0.00035616,2]
[314853885,1708594256866,-500.0,0.00035616,2]
[314853886,1708594256875,-500.0,0.00035616,2]
[314853887,1708594256884,-500.0,0.00035616,2]
[314853888,1708594256894,-1062.12,0.00035616,2]
[314853889,1708594256903,-1773.28,0.00035616,2]
[314853890,1708594256913,-503.86845636,0.00035616,2]
[314853891,1708594256922,-500.0,0.00035616,2]
[314853892,1708594256931,-693.69,0.00035616,2]
[314853893,1708594256941,-488.88879128,0.00035616,2]
[314853894,1708594256950,-500.0,0.00035616,2]
[314853895,1708594256959,-500.0,0.00035616,2]
[314853896,1708594256969,-4017.11,0.00035616,2]
[314853897,1708594256977,-500.0,0.00035616,2]
[314853898,1708594256987,-502.18024781,0.00035616,2]
[314853899,1708594256997,-500.0,0.00035616,2]
[314853900,1708594257006,-586.47,0.00035616,2]
[314853901,1708594257016,-500.0,0.00035616,2]
[314853902,1708594257026,-500.0,0.00035616,2]
[314853903,1708594257036,-500.0,0.00035616,2]
[314853904,1708594257045,-500.0,0.00035616,2]
[314853905,1708594257054,-3758.22,0.00035616,2]
[314853906,1708594257064,-500.0,0.00035616,2]
[314853907,1708594257074,-500.0,0.00035616,2]
[314853908,1708594257084,-1739.71,0.00035616,2]
[314853909,1708594257093,-811.39,0.00035616,2]
[314853910,1708594257102,-774.65,0.00035616,2]
[314853911,1708594257111,-500.0,0.00035616,2]
[314853912,1708594257121,-500.0,0.00035616,2]
[314853913,1708594257131,-500.0,0.00035616,2]
[314853914,1708594257141,-983.36,0.00035616,2]
[314853915,1708594257265,-701.86,0.00035616,2]
[314853916,1708594257276,-500.0,0.00035616,2]
[314853917,1708594257289,-3759.83,0.00035616,2]
[314853918,1708594257299,-334.82762383,0.00035616,2]
[314853919,1708594257308,-1430.05,0.00035616,2]
[314853920,1708594257318,-1976.48,0.00035616,2]
[314853921,1708594257327,-500.82986216,0.00035616,2]
[314853922,1708594257337,-2459.52,0.00035616,2]
[314853923,1708594257346,-500.0,0.00035616,2]
[314853924,1708594257356,-507.00487745,0.00035616,2]
[314853925,1708594257365,-500.0,0.00035616,2]
[314853926,1708594257375,-3942.06,0.00035616,2]
[314853927,1708594257385,-544.22442429,0.00035616,2]
[314853928,1708594257395,-500.0,0.00035616,2]
[314853929,1708594257405,-507.99,0.00035616,2]
[314853930,1708594257414,-500.0,0.00035616,2]
[314853931,1708594257424,-500.0,0.00035616,2]
[314853932,1708594257433,-673.92,0.00035616,2]
[314853933,1708594257444,-675.72,0.00035616,2]
[314853934,1708594257454,-1851.81,0.00035616,2]
[314853935,1708594257466,-771.19,0.00035616,2]
[314853936,1708594257476,-967.77,0.00035616,2]
[314853937,1708594257486,-1710.23,0.00035616,2]
[314853938,1708594257496,-537.3747195,0.00035616,2]
[314853939,1708594257506,-512.10422333,0.00035616,2]
[314853940,1708594257516,-577.46,0.00035616,2]
[314853941,1708594257526,-983.98,0.00035616,2]
[314853942,1708594257535,-500.0,0.00035616,2]
[314853943,1708594257546,-4040.3,0.00035616,2]
[314853944,1708594257556,-818.44,0.00035616,2]
[314853945,1708594257566,-1555.42,0.00035616,2]
[314853946,1708594257577,-500.0,0.00035616,2]
[314853947,1708594257587,-1141.83,0.00035616,2]
[314853948,1708594257596,-500.0,0.00035616,2]
[314853949,1708594257606,-1183.25,0.00035616,2]
[314853950,1708594257615,-500.0,0.00035616,2]
[314853951,1708594257625,-500.0,0.00035616,2]
[314853952,1708594257635,-1758.9,0.00035616,2]
[314853953,1708594257646,-500.0,0.00035616,2]
[314853954,1708594257658,-500.0,0.00035616,2]
[314853955,1708594257669,-500.0,0.00035616,2]
[314853956,1708594257679,-928.11,0.00035616,2]
[314853957,1708594257689,-500.0,0.00035616,2]
[314853958,1708594257698,-535.95244845,0.00035616,2]
[314853959,1708594257708,-500.0,0.00035616,2]
[314853960,1708594257718,-985.03,0.00035616,2]
[314853961,1708594257727,-500.0,0.00035616,2]
[314853962,1708594257737,-500.0,0.00035616,2]
[314853963,1708594257746,-500.0,0.00035616,2]
[314853964,1708594257755,-541.67,0.00035616,2]
[314853965,1708594257764,-500.0,0.00035616,2]
[314853966,1708594257774,-500.0,0.00035616,2]
[314853967,1708594257784,-500.0,0.00035616,2]
[314853968,1708594257794,-213.33322344,0.00035641,8]
[314853969,1708594257804,-2180.44691804,0.00035647,2]
[314853970,1708594257814,-330.87549301,0.00035647,2]
[314853971,1708594257824,-938.72,0.0003565,2]
[314853972,1708594257834,-31056.29192711,0.00035712,15]
[314853973,1708594257843,-50000.0,0.00035712,15]
[314853974,1708594257852,-50000.0,0.00035712,15]
[314853975,1708594257862,-50000.0,0.00035712,15]
[314853976,1708594257871,-50000.0,0.00035712,15]
[314853977,1708594257880,-50000.0,0.00035712,15]
[314853978,1708594257890,-29459.89891618,0.00035712,15]
[314853979,1708594257899,-16282.23347239,0.00035712,13]
[314853980,1708594257908,-151.88658938,0.00035722,2]
[314853981,1708594257918,-213.33322344,0.00035765,8]
[314853982,1708594257927,-613.63,0.00035779,2]
[314853983,1708594257937,-1482.51491165,0.00035784,2]
[314853984,1708594257946,-306.5186376,0.00035784,2]
[314853985,1708594257955,-2568.7553057,0.00035784,2]
[314853986,1708594257965,-207.8188,0.0003579,2]
[314853987,1708594257977,-1375.58,0.00035798,2]
[314853988,1708594257986,-6352.08,0.00035799,2]
[314853989,1708594257996,-150.35,0.000358,2]
[314853990,1708594258005,-221.08,0.00035872,2]
[314853991,1708594258015,-200.0,0.00035874,3]
[314853992,1708594258024,-800.0,0.00035874,3]
[314853993,1708594258034,-151.0,0.00035877,120]
[314853994,1708594258045,-150.0,0.00035889,30]
[314853995,1708594258054,-150.0,0.00035889,30]
[314853996,1708594258063,-150.0,0.00035889,30]
[314853997,1708594258073,-6352.08,0.00035889,2]
[314853998,1708594258082,-6352.08,0.00035889,2]
[314853999,1708594258092,-6352.08,0.00035889,2]
[314854000,1708594258100,-6352.08,0.00035889,2]
[314854001,1708594258110,-213.33322344,0.0003589,8]
[314854002,1708594258119,-515.85179392,0.0003589,2]
[314854003,1708594258128,-500.0,0.0003589,2]
[314854004,1708594258138,-500.0,0.0003589,2]
[314854005,1708594258148,-267.79395078,0.0003589,2]
[314854006,1708594258157,-500.0,0.0003589,2]
[314854007,1708594258167,-500.0,0.0003589,2]
[314854008,1708594258177,-559.27190844,0.0003589,2]
[314854009,1708594258187,-500.0,0.0003589,2]
[314854010,1708594258196,-550.240533,0.0003589,2]
[314854011,1708594258206,-500.0,0.0003589,2]
[314854012,1708594258215,-500.0,0.0003589,2]
[314854013,1708594258225,-500.0,0.0003589,2]
[314854014,1708594258234,-500.0,0.0003589,2]
[314854015,1708594258243,-500.0,0.0003589,2]
[314854016,1708594258253,-500.0,0.0003589,2]
[314854017,1708594258262,-500.0,0.0003589,2]
[314854018,1708594258271,-500.0,0.0003589,2]
[314854019,1708594258282,-500.0,0.0003589,2]
[314854020,1708594258291,-500.0,0.0003589,2]
[314854021,1708594258300,-540.85,0.0003589,2]
[314854022,1708594258309,-500.0,0.0003589,2]
[314854023,1708594258320,-500.0,0.0003589,2]
[314854024,1708594258330,-500.0,0.0003589,2]
[314854025,1708594258340,-500.0,0.0003589,2]
[314854026,1708594258349,-613.13907358,0.0003589,2]
[314854027,1708594258358,-500.0,0.0003589,2]
[314854028,1708594258368,-500.0,0.0003589,2]
[314854029,1708594258378,-500.0,0.0003589,2]
[314854030,1708594258388,-500.0,0.0003589,2]
[314854031,1708594258398,-500.0,0.0003589,2]
[314854032,1708594258408,-500.0,0.0003589,2]
[314854033,1708594258417,-500.0,0.0003589,2]
[314854034,1708594258427,-500.0,0.0003589,2]
[314854035,1708594258436,-500.0,0.0003589,2]
[314854036,1708594258446,-500.0,0.0003589,2]
[314854037,1708594258455,-500.0,0.0003589,2]
[314854038,1708594258467,-500.0,0.0003589,2]
[314854039,1708594258479,-500.0,0.0003589,2]
[314854040,1708594258489,-397.57129907,0.0003589,2]
[314854041,1708594258499,-404.31026061,0.0003589,2]
[314854042,1708594258509,-500.0,0.0003589,2]
[314854043,1708594258520,-500.0,0.0003589,2]
[314854044,1708594258529,-556.55787389,0.0003589,2]
[314854045,1708594258538,-537.87,0.0003589,2]
[314854046,1708594258547,-500.0,0.0003589,2]
[314854047,1708594258557,-500.0,0.0003589,2]
[314854048,1708594258566,-500.0,0.0003589,2]
[314854049,1708594258575,-500.0,0.0003589,2]
[314854050,1708594258584,-500.0,0.0003589,2]
[314854051,1708594258593,-500.0,0.0003589,2]
[314854052,1708594258602,-500.0,0.0003589,2]
[314854053,1708594258611,-500.0,0.0003589,2]
[314854054,1708594258621,-500.0,0.0003589,2]
[314854055,1708594258631,-500.0,0.0003589,2]
[314854056,1708594258642,-500.0,0.0003589,2]
[314854057,1708594258654,-500.0,0.0003589,2]
[314854058,1708594258664,-500.0,0.0003589,2]
[314854059,1708594258674,-500.0,0.0003589,2]
[314854060,1708594258684,-500.0,0.0003589,2]
[314854061,1708594258693,-513.24,0.0003589,2]
[314854062,1708594258702,-500.0,0.0003589,2]
[314854063,1708594258711,-500.0,0.0003589,2]
[314854064,1708594258721,-500.0,0.0003589,2]
[314854065,1708594258731,-528.25400796,0.0003589,2]
[314854066,1708594258741,-500.0,0.0003589,2]
[314854067,1708594258752,-500.0,0.0003589,2]
[314854068,1708594258762,-500.0,0.0003589,2]
[314854069,1708594258771,-500.0,0.0003589,2]
[314854070,1708594258781,-515.34665608,0.0003589,2]
[314854071,1708594258791,-527.37,0.0003589,2]
[314854072,1708594258801,-500.0,0.0003589,2]
[314854073,1708594258810,-500.0,0.0003589,2]
[314854074,1708594258819,-500.0,0.0003589,2]
[314854075,1708594258829,-500.0,0.0003589,2]
[314854076,1708594258837,-500.0,0.0003589,2]
[314854077,1708594258847,-500.0,0.0003589,2]
[314854078,1708594258857,-500.0,0.0003589,2]
[314854079,1708594258867,-555.61,0.0003589,2]
[314854080,1708594258876,-541.12,0.0003589,2]
[314854081,1708594258886,-500.0,0.0003589,2]
[314854082,1708594258895,-564.39871715,0.0003589,2]
[314854083,1708594258904,-500.0,0.0003589,2]
[314854084,1708594258913,-500.0,0.0003589,2]
[314854085,1708594258923,-500.0,0.0003589,2]
[314854086,1708594258933,-500.0,0.0003589,2]
[314854087,1708594258942,-500.0,0.0003589,2]
[314854088,1708594258952,-500.0,0.0003589,2]
[314854089,1708594258962,-500.0,0.0003589,2]
[314854090,1708594258973,-500.0,0.0003589,2]
[314854091,1708594258983,-500.0,0.0003589,2]
[314854092,1708594258992,-500.0,0.0003589,2]
[314854093,1708594259001,-507.18,0.0003589,2]
[314854094,1708594259011,-500.0,0.0003589,2]
[314854095,1708594259020,-500.0,0.0003589,2]
[314854096,1708594259030,-500.0,0.0003589,2]
[314854097,1708594259039,-581.52,0.0003589,2]
[314854098,1708594259049,-500.0,0.0003589,2]
[314854099,1708594259058,-500.0,0.0003589,2]
[314854100,1708594259068,-500.0,0.0003589,2]
[314854101,1708594259078,-500.0,0.0003589,2]
[314854102,1708594259088,-500.0,0.0003589,2]
[314854103,1708594259098,-500.0,0.0003589,2]
[314854104,1708594259107,-608.74,0.0003589,2]
[314854105,1708594259117,-500.0,0.0003589,2]
[314854106,1708594259126,-500.0,0.0003589,2]
[314854107,1708594259136,-500.0,0.0003589,2]
[314854108,1708594259146,-500.0,0.0003589,2]
[314854109,1708594259156,-500.0,0.0003589,2]
[314854110,1708594259165,-398.92796234,0.0003589,2]
[314854111,1708594259176,-500.0,0.0003589,2]
[314854112,1708594259186,-500.0,0.0003589,2]
[314854113,1708594259196,-500.0,0.0003589,2]
[314854114,1708594259206,-500.0,0.0003589,2]
[314854115,1708594259216,-500.0,0.0003589,2]
[314854116,1708594259225,-500.0,0.0003589,2]
[314854117,1708594259234,-500.0,0.0003589,2]
[314854118,1708594259243,-500.0,0.0003589,2]
[314854119,1708594259253,-500.0,0.0003589,2]
[314854120,1708594259262,-500.0,0.0003589,2]
[314854121,1708594259273,-500.0,0.0003589,2]
[314854122,1708594259283,-500.0,0.0003589,2]
[314854123,1708594259293,-544.27,0.0003589,2]
[314854124,1708594259303,-500.0,0.0003589,2]
[314854125,1708594259313,-500.0,0.0003589,2]
[314854126,1708594259323,-500.0,0.0003589,2]
[314854127,1708594259332,-500.0,0.0003589,2]
[314854128,1708594259342,-630.72,0.0003589,2]
[314854129,1708594259352,-500.0,0.0003589,2]
[314854130,1708594259361,-500.0,0.0003589,2]
[314854131,1708594259370,-500.0,0.0003589,2]
[314854132,1708594259379,-614.70769633,0.0003589,2]
[314854133,1708594259388,-500.0,0.0003589,2]
[314854134,1708594259397,-500.0,0.0003589,2]
[314854135,1708594259406,-640.35654892,0.0003589,2]
[314854136,1708594259415,-500.0,0.0003589,2]
[314854137,1708594259424,-500.0,0.0003589,2]
[314854138,1708594259434,-500.0,0.0003589,2]
[314854139,1708594259443,-500.0,0.0003589,2]
[314854140,1708594259454,-500.0,0.0003589,2]
[314854141,1708594259465,-500.0,0.0003589,2]
[314854142,1708594259475,-500.0,0.0003589,2]
[314854143,1708594259484,-1213.3,0.0003589,2]
[314854144,1708594259493,-500.0,0.0003589,2]
[314854145,1708594259503,-500.0,0.0003589,2]
[314854146,1708594259513,-500.0,0.0003589,2]
[314854147,1708594259522,-500.0,0.0003589,2]
[314854148,1708594259531,-500.0,0.0003589,2]
[314854149,1708594259540,-834.66,0.0003589,2]
[314854150,1708594259550,-500.0,0.0003589,2]
[314854151,1708594259559,-500.0,0.0003589,2]
[314854152,1708594259569,-538.98,0.0003589,2]
[314854153,1708594259578,-500.0,0.0003589,2]
[314854154,1708594259589,-559.67,0.0003589,2]
[314854155,1708594259598,-1947.28,0.0003589,2]
[314854156,1708594259608,-500.0,0.0003589,2]
[314854157,1708594259618,-500.0,0.0003589,2]
[314854158,1708594259627,-500.0,0.0003589,2]
[314854159,1708594259637,-500.0,0.0003589,2]
[314854160,1708594259646,-500.0,0.0003589,2]
[314854161,1708594259655,-500.0,0.0003589,2]
[314854162,1708594259666,-500.0,0.0003589,2]
[314854163,1708594259677,-500.0,0.0003589,2]
[314854164,1708594259686,-500.0,0.0003589,2]
[314854165,1708594259695,-500.0,0.0003589,2]
[314854166,1708594259704,-500.0,0.0003589,2]
[314854167,1708594259715,-507.07242521,0.0003589,2]
[314854168,1708594259724,-500.0,0.0003589,2]
[314854169,1708594259733,-732.12,0.0003589,2]
[314854170,1708594259742,-500.0,0.0003589,2]
[314854171,1708594259751,-500.0,0.0003589,2]
[314854172,1708594259760,-500.0,0.0003589,2]
[314854173,1708594259769,-500.0,0.0003589,2]
[314854174,1708594259779,-518.46192316,0.0003589,2]
[314854175,1708594259789,-681.33,0.0003589,2]
[314854176,1708594259798,-500.0,0.0003589,2]
[314854177,1708594259807,-500.0,0.0003589,2]
[314854178,1708594259816,-500.0,0.0003589,2]
[314854179,1708594259825,-500.0,0.0003589,2]
[314854180,1708594259835,-315.75913741,0.0003589,2]
[314854181,1708594259845,-500.0,0.0003589,2]
[314854182,1708594259855,-651.13,0.0003589,2]
[314854183,1708594259864,-517.28,0.0003589,2]
[314854184,1708594259874,-500.0,0.0003589,2]